Workbook

Sheet Cover page
E12: License application for a Bank
E13: to practice Real Estate Finance
E14: and Financial Lease
C21: Bank name
C28: Applicant ID Number in SAMA (filled in by the responsible officer at SAMA after receiving the application)

Sheet Application checklist
B7: License Application for a Bank to Practice Real Estate Finance and Financial Lease
B8: Instructions
B9: 1. License application form is submitted by the bank.
B10: 2. A hardcopy of forms and documents in the below checklist is to be submitted with a CD or USB storage unit that has an identical softcopy of these forms and documents according to the checklist.
B11: 3. The license application form set by SAMA shall not be modified in any way.
B12: 4. If extra space is required to answer any question, then attach any answers to the hardcopy of the form. On each attachment, provide the relevant question number and its text.
B16: 5. Words and phrases, wherever they appear in this Form, shall have the corresponding meanings in Article 1 of the Law on the Supervision of Finance Companies and Article 1 of the Implementing Regulations of the Law on the Supervision of Finance Companies, unless the context states otherwise. The term "Bank" or "Applicant" shall mean the bank requesting license to practice real estate finance or financial lease activities or both of them.
B18: 6. The applicant must ensure that the information provided in this license application is correct, accurate and complete and that the application does not contain any false, incorrect or misleading or inaccurate or incomplete information, as providing SAMA with false information or not disclosing any material information that should be disclosed for the purposes of the licensing is considered a violation of the provisions of the Law on Supervision of Finance Companies and might result in application rejection or cancellation of license based on Article (7) of the Law on Supervision of Finance Companies.
B20: Checklist
B21: The following checklist includes forms and documents that must be included in the application:
B23: Attachment number | C23: Attachments | E23: Notes
A24: FALSE | B24: 1 | C24: License application form | E24: A hardcopy and an identical softcopy of completed license application form as set by SAMA for a Bank to practice Real Estate Finance and Financial Lease, in accordance with the sections identified in the application.
E25: General details
E26: Compliance plan
E27: Business details
E28: Acknowledgement
E29: Attachments
A30: FALSE | B30: =B24+1 -> 2 | C30: Organizational structure | E30: Description of organizational structure of the functional units related to real estate finance and financial lease activities, including associated functions, organizational relations and key responsibilities of each.
A31: FALSE | B31: =B30+1 -> 3 | C31: Feasibility study | E31: Feasibility study, in accordance with the details identified in the license application form. ■ Industry analysis includes at a minimum: – Market size – Market structure – Supply, demand and market gap (Current) – Supply, demand and market gap (Future) ■ Competitive analysis of key players that includes – Competitive advantage – Market share – Products offered – Geographical presence ■ Customer analysis of key players that includes – Customer segments targeted – Customer preferences ■ Financial analysis of the market that includes – Forecasted revenue by activity – Forecasted profit by activity ■ Outcome of the feasibility study that includes at a minimum: – Rationale for decision to enter the market – Expected market share of current and future supply/demand gap – Key industry opportunities and challenges – Targeted market segments
B33: =B31+1 -> 4 | C33: Business plan | E33: Business plan according to the details identified in the license application form. A: Financing activities requiring a license, relevant products, and marketing plan. B: Relevant credit policies and procedures to be licensed. C: Projected annual revenue, expenses, financial margins and targeted growth rates for the activities to be licensed D: Plan and programs for risk and compliance monitoring and management for the activities to be licensed E: Employment and training plan for the activities requiring a license, including the training and qualification programs for employees F: Potential Risks for activities to be licensed and its impacts on bank's operations and financial position and the way to deal with such risks
A34: FALSE | B34: =B33+1 -> 5 | C34: Agreements and Contracts with third parties | E34: Agreements and contracts with third parties in relation to activities to be licensed, especially agreements and contracts with related parties and external service providers, in addition to drafts of proposed agreements and contracts.

Sheet 1. General details
C7: General details
A11: 1 | B11: =A11+0.1 -> 1.1 | C11: Activity or Activities requiring license:
E12: Real estate financing
E13: Financial lease
C15: Note: Approval of a financial lease license on its own does not constitute permission for an entity to conduct real estate financial lease
A28: =A11+1 -> 2 | C28: Contact details
C29: Contact details of the person that SAMA will get in touch with regarding this application
C30: This must be someone who works for the Bank and is not a professional advisor
B33: =A28+0.1 -> 2.1 | C33: First name
B35: =B33+0.1 -> 2.2 | C35: Middle name(s)
B37: =B35+0.1 -> 2.3 | C37: Surname
B39: =B37+0.1 -> 2.4 | C39: Job title / proposed job title
B41: =B39+0.1 -> 2.5 | C41: Physical address of primary business location
B45: =B41+0.1 -> 2.6 | C45: Mailing address
B49: =B45+0.1 -> 2.7 | C49: Phone number
B51: =B49+0.1 -> 2.8 | C51: Mobile number
B53: =B51+0.1 -> 2.9 | C53: Fax number
B55: ="2.10" -> 2.10 | C55: Email address
A69: =A28+1 -> 3 | C69: Bank details
B71: 3.1 | C71: What was the start date of operations for Real Estate Financing (if applicable)?
C72: Date (DD/MM/YYYY)
B78: 3.2 | C78: Does the Bank have shareholding in any finance company (e.g. leasing, real estate financing etc.)?
E80: ="No" -> No
E81: Yes, provide details below
C83: Name of company | D83: Commercial registration number (If KSA based company) | F83: Percent share-holding of Bank | G83: List of financing activities
B97: Question | C97: Data
B98: 1.1a | C98: TRUE
B99: 1.1b | C99: TRUE
B100: =B78 -> 3.2 | C100: 1

Sheet 2. Compliance plan
C7: Compliance plan
C9: This section includes questions about some related finance activities requirements and the bank compliance with these requirements with regard to the finance activities requiring license under this license application, in order to evaluate bank's position and its plan to adjust it according to the provisions of finance laws and their implementing regulations. Approving the license application submitted by the bank or granting the license to practice the finance activities requiring license doesn't release the bank from its obligation to comply with any related requirements in the finance laws and their implementing regulations.
C14: Where the term "Selected Activities" is used, it shall refer to the financing activity or activities requiring license and selected in clause 1.1 of the General Details form.
A21: 1
B22: 1.1 | C22: For the Selected Activities, are all of the Bank's files and records organized, transparent, safe, complete, and updated, for at least 10 years from the end date of relation with customer?
E25: Yes
E26: No, provide details on how the Bank will comply with Article 34 of the Implementing Regulations of the Law on Supervision of Finance Companies
E27: e.g., specify the steps and timeline the Bank will follow to be compliant.
C31: Shariah compliance
B32: =B22+0.1 -> 1.2 | C32: How does the Bank plan to practice the Selected Activities in accordance with the principles of Shariah as detailed in Article 3 of the Law on the Supervision of Financing Companies?
E35: e.g., specify the steps and timeline the Bank will follow to be compliant.
B40: =B32+0.1 -> 1.3 | C40: Is there a Shariah Committee in the bank according to article 3 of Real Estate Finance Law and article 3 of the Law on Supervision of Financing Companies? Who are the members of the Bank's Shariah committee, if any, or the expected date for its formation?
E41: Specify the names of the members of the Bank's Shariah committee, if any, or the expected date for its formation?
B46: =B40+0.1 -> 1.4 | C46: By what date, will all of the products for the Selected Activities be reviewed by the Shariah committee?
B53: =B46+0.1 -> 1.5 | C53: For the Selected Activities, by what date, will the Bank be fully compliant with article 3 of Real Estate Finance Law and article 3 of the Law on the Supervision of Financing Companies?
C59: Risk management
B60: =B53+0.1 -> 1.6 | C60: For the Selected Activities, does the Bank meet the risk management requirements as detailed in Article 38, 39 and 40 of the Implementing Regulations of the Law on Supervision of Finance Companies?
E63: Yes
E64: No, provide details on how the Bank will comply
E65: e.g., specify the steps and timeline the Bank will follow to be compliant.
C69: Compliance function or department
B70: =B60+0.1 -> 1.7 | C70: Does the Bank have a compliance function for the Selected Activities?
E71: Yes
E72: No, provide details on how the Bank will comply with Article 42 of the Implementing Regulations of the Law on Supervision of Finance Companies
E73: e.g., specify the steps and timeline the Bank will follow to be compliant.
C77: Financing policies
B78: 1.8 | C78: For the Selected Activities, does the Bank have written financing policies setting out rules and procedures for granting finance
E83: Yes
E84: No, provide details on how the Bank will comply with Article 52 of the Implementing Regulations of the Law on Supervision of Finance Companies
E85: e.g., specify the steps and timeline the Bank will follow to be compliant.
B90: 1.9 | C90: For the Selected Activities, does the Bank have any financing to a foreign Borrower that is not a resident in the Kingdom?
E92: No
E93: Yes, provide details on financing provided to a foreign borrower who is not resident in the Kingdom for the selected activities and SAMA approval.
B99: 1.1 | C99: For the Selected Activities, does the Bank have any financing in a currency other than the Saudi Riyal?
E101: No
E102: Yes, provide details on financing provided in a currency other than Saudi Riyal for the selected activities
B108: =B99+0.01 -> 1.11 | C108: For the Selected Activities, does the Bank assess risks related to every exposure, rate it before issuing the finance and review the rating every year?
E110: Yes
E111: No, provide details on how the Bank will comply with Article 59 of the Implementing Regulations of the Law on Supervision of Finance Companies
E112: e.g., specify the steps and timeline the Bank will follow to be compliant.
B117: =B108+0.01 -> 1.12 | C117: For the Selected Activities, are the guarantees provided to the Bank for financing compliant with risk management policies and procedures that are agreed on by the board of directors?
E119: Yes
E120: No, provide details on how the Bank will comply with Article 60 of the Implementing Regulations of the Law on Supervision of Finance Companies
E121: e.g., specify the steps and timeline the Bank will follow to be compliant.
C126: Consumer protection in Financial Services
B127: =B117+0.01 -> 1.13 | C127: Do the Bank's finance agreements for the Selected Activities contain all of the information as detailed in Article 78 of the Implementing Regulations of the Law on Supervision of Finance Companies?
E130: Yes
E131: No, provide details on how the Bank will comply
E132: e.g., specify the steps and timeline the Bank will follow to be compliant.
B137: =B127+0.01 -> 1.14 | C137: For the Selected Activities, do the Bank's administrative fees and charges and commissions to be recovered from a borrower for each transaction NOT exceed 1% of the loan or 5,000 Saudi Riyals, whichever is less?
E140: Yes
E141: No, provide details on how the Bank will comply with Article 83 of the Implementing Regulations of the Law on Supervision of Finance Companies
E142: e.g., specify the steps and timeline the Bank will follow to be compliant.
C147: Finance support activities
B148: =B137+0.01 -> 1.15 | C148: For the Selected Activities, does the Bank deal with any third party companies that support the Bank in the Selected Activities e.g., finance products marketing or debt collection?
E150: No
E151: Yes, list all 3rd party companies and services provided to the Bank
C157: Answer the questions related to the activity the Bank is applying for:
E158: ="Real estate financing, proceed to 2.1" -> Real estate financing, proceed to 2.1
E159: ="Financial lease, proceed to "&B206 -> Financial lease, proceed to 3.1
A164: 2
B165: 2.1 | C165: Do the contracts created between the Bank and the borrower contain all of the elements as required in Article 10 of the Implementing Regulation of the Real Estate Finance Law?
E168: Yes
E169: No, provide details on how the Bank will comply with the provisions of this article
E170: e.g., what actions will be taken to meet these requirements? By when will the Bank issue the new contracts?
B175: =B165+0.1 -> 2.2 | C175: Did any of the Bank's previous real estate loans exceed 70% of the value of the financed property?
E177: No
E178: Yes, provide details on the Bank's existing real estate loans in which loan-to-value (LTV) exceed (70%), including number and volume of real estate finance contracts in which LTV exceeds (70%), their percentage of overall real estate finance portfolio, and classification of such real estate finance contracts based on (LTV) of (70-80%), (81-90%), and (91-100%); and specify how the Bank will comply with the provisions of Article 12 of the Implementing Regulation of the Real Estate Finance Law.
E179: e.g., specify the steps and timeline the Bank will follow to be compliant.
B184: =B175+0.1 -> 2.3 | C184: Does the Bank provide any subsidized real estate loans?
E185: No
E186: Yes, provide details on the subsidizing way, mechanism and conditions and subsidizing body
A205: 3
B206: =A205+0.1 -> 3.1 | C206: Are the financial lease contracts compliant with the Financial Lease Law and its implementing regulation?
E208: Yes
E209: No, provide details on how the Bank will comply with the Financial Lease Law and its implementing regulation
E210: e.g., specify the steps and timeline the Bank will follow to be compliant.

Sheet 2. Compliance data (hidden)
A1: Question | B1: Data
A2: ='2. Compliance plan'!B22 -> 1.1 | B2: 2
A3: 1.6 | B3: 1
A4: =A3+0.1 -> 1.7 | B4: 2
A5: 1.8 | B5: 2
A6: 1.9 | B6: 2
A7: 1.1 | B7: 2
A8: 1.11 | B8: 2
A9: 1.12 | B9: 2
A10: 1.13 | B10: 2
A11: 1.14 | B11: 1
A12: 1.15 | B12: 1
A13: 1.16 | B13: 2
A14: 2.1 | B14: 1
A15: 2.2 | B15: 2
A16: 2.3 | B16: 1
A17: 3.1 | B17: 1

Sheet 3.0 Business Details Overview
B8: Business Plan Overview
B12: The following section shall include the overall business strategy for the applicant with details on governance, target market, financials and execution milestones and plan, for the finance activities for which the applicant request license.
B18: Themes | C18: S.No. | D18: Contents
B19: Management | C19: 3.1 | D19: Management team
B20: Strategy | C20: 3.2 | D20: Target Market
C21: 3.3 | D21: Value Proposition
B22: Financials | C22: 3.4 | D22: Financial portfolio information
C23: 3.5 | D23: Performance of the financial portfolio
C24: 3.6 | D24: Margins and Assumptions
B25: Execution Plan | C25: 3.7 | D25: Operations Plan
C26: 3.8 | D26: Human Resources plan

Sheet 3.1 Management Team
B7: Management Team
A9: No. of Managers | B9: =COUNT(C:C) -> 1
C12: This part must provide details about senior management directly related to the selected financing activities across the bank, including manager(s) responsible for the financing activities applied for and their deputies, as well as those responsible for risk management, revision and compliance functions for the financing activities applied for.
C13: Senior Management | D13: Details | M13: Senior Management | N13: Details
C14: =B35 -> 1 | M14: 1
C15: First name | M15: First name
C17: Middle name | M17: Middle name
C19: Last name | M19: Last name
C21: Nationality | M21: Nationality
C23: National ID or Passport Number | M23: National ID or Passport Number
C25: Iqama number (for non- Saudi)
C27: Position title | M27: Position Title
C29: Short description of the position | M29: Short description of role
C31: To which position is this manager reporting to? Please provide details
C33: Does the Bank have SAMA's approval for the person leading the selected activity? Please provide details
B35: =B11+1 -> 1

Sheet 3.2 Target Market
C9: Target Market
C11: This part should include details on the target market for financing activity applied for (including description for target segment of customers based on income level, geographic distribution, consuming behaviours and any other classification used by the Bank) with description for forecasts of the market size, profits and expected losses, in addition to a description for the competitive environment and key challenges that the Bank expects to face with potential mitigations that the Bank intends to leverage to combat the challenges.
C12: Target Market | E12: Target Market
C13: Target Activities | D13: Target segments
A15: FALSE | X15: Real Estate Finance
A17: FALSE | X17: Financial lease
C23: Provide details about the real estate finance market only if bank is applying for real estate finance license
C24: Real Estate Finance
C25: Market Economics | D25: Historical | J25: Forecast
D26: 2008 | E26: 2009 | F26: 2010 | G26: 2011 | H26: 2012 | I26: CAGR, % | J26: 2013 | K26: 2014 | L26: 2015 | M26: 2016 | N26: 2017 | O26: CAGR, %
C27: Total market volumes, SAR millions
C28: Average gross profit margin, %
C29: Non performing loans as % of total loans (non payment of instalment for more than 90 days)
C33: Market Structure
D34: Name | J34: Estimated Market Share, %
C35: Key competitor 1
C37: Key competitor 2
C39: Key competitor 3
C41: Explain the important drivers of demand in the activity area (like population, income increase etc.)
C44: Key market challenges and barriers
D45: Challenge description | J45: Potential mitigations
C47: Challenge 1
C49: Challenge 2
C51: Challenge 3
C53: Challenge 4
C55: Challenge 5
C57: Challenge 6
A60: =A8+1 -> 1
C67: Provide details about the financial lease market only if bank is applying for financial lease
C68: Financial lease
C69: Market Economics | D69: Historical | J69: Forecast
D70: 2008 | E70: 2009 | F70: 2010 | G70: 2011 | H70: 2012 | I70: CAGR, % | J70: 2013 | K70: 2014 | L70: 2015 | M70: 2016 | N70: 2017 | O70: CAGR, %
C71: Total market volumes, SAR millions
C72: By automotive financial lease
C73: By equipment financial lease
C74: Other financial lease (do not include real estate financial lease; it should be covered in real estate finance)
C75: Average gross profit margin, % (Automotive)
C76: Average gross profit margin, % (equipment)
C77: Non performing lease as % of total lease (non payment of instalment for more than 90 days)
C80: Market Structure
D81: Name | J81: Estimated Market Share, %
C82: Key competitor 1
C84: Key competitor 2
C86: Key competitor 3
C88: Explain the important drivers of demand in the activity area (like population, income increase etc.)
C91: Key market challenges and barriers
D92: Challenge description | J92: Potential mitigants
C94: Challenge 1
C96: Challenge 2
C98: Challenge 3
C100: Challenge 4
C102: Challenge 5
C104: Challenge 6

Sheet 3.3 Value Proposition
C6: Value proposition
... 2 more rows

Sheet 3.4 Portfolio Information
C8: Portfolio information
C9: Fill the following table with the historical values for the past 5 years and the Forecast values for the next 5 years for the financing activities applied for.
D11: Historical | J11: Forecast
C12: SAR | D12: 2008 | E12: 2009 | F12: 2010 | G12: 2011 | H12: 2012 | I12: CAGR % | J12: 2013 | K12: 2014 | L12: 2015 | M12: 2016 | N12: 2017 | O12: CAGR %
C13: VOLUMES BY Financing Activity
C15: Real estate finance
C16: Financial lease
C17: By automotive financial lease
C18: By equipment financial lease
C19: Other financial lease (do not include real estate financial lease; it should be covered in real estate finance)
C21: RISK WEIGHTED ASSETS BY PRODUCTS
C23: Real estate finance
C24: Financial lease
C25: By automotive financial lease
C26: By equipment financial lease
C27: Other financial lease (do not include real estate financial lease; it should be covered in real estate finance)
C30: FOR REAL ESTATE FINANCE ONLY | D30: Historical | J30: Forecast
C31: SAR | D31: 2008 | E31: 2009 | F31: 2010 | G31: 2011 | H31: 2012 | I31: CAGR % | J31: 2013 | K31: 2014 | L31: 2015 | M31: 2016 | N31: 2017 | O31: CAGR %
C32: VOLUME BY GEOGRAPHICAL REGIONS
C34: Hail
C35: Riyadh
C36: Qasim
C37: Makkah
C38: Madinah
C39: Tabuk
C40: Bahah
C41: Eastern Province
C42: Northern borders
C43: Jawf
C44: Jizan
C45: Asir
C46: Najran
C47: TOTAL VOLUMES
C51: FOR FINANCIAL LEASE ONLY | D51: Historical | J51: Forecast
C52: SAR | D52: 2008 | E52: 2009 | F52: 2010 | G52: 2011 | H52: 2012 | I52: CAGR % | J52: 2013 | K52: 2014 | L52: 2015 | M52: 2016 | N52: 2017 | O52: CAGR %
C53: VOLUME BY GEOGRAPHICAL REGIONS
C55: Hail
C56: Riyadh
C57: Qasim
C58: Makkah
C59: Madinah
C60: Tabuk
C61: Bahah
C62: Eastern Province (Dammam)
C63: Northern borders
C64: Jawf
C65: Jizan
C66: Asir
C67: Najran
C68: TOTAL VOLUMES
C72: FOR REAL ESTATE FINANCE ONLY | D72: Historical | J72: Forecast
C73: SAR | D73: 2008 | E73: 2009 | F73: 2010 | G73: 2011 | H73: 2012 | I73: CAGR % | J73: 2013 | K73: 2014 | L73: 2015 | M73: 2016 | N73: 2017 | O73: CAGR %
C74: VOLUMES BY INCOME LEVEL OF CUSTOMERS
C76: 5000 SAR or less per month
C77: 5001 to 10000 SAR per month
C78: 10001 to 15000 SAR per month
C79: 15001 to 20000 SAR per month
C80: More than 20000 SAR per month
C81: TOTAL VOLUMES
C84: FOR RETAIL FINANCIAL LEASE ONLY | D84: Historical | J84: Forecast
C85: SAR | D85: 2008 | E85: 2009 | F85: 2010 | G85: 2011 | H85: 2012 | I85: CAGR % | J85: 2013 | K85: 2014 | L85: 2015 | M85: 2016 | N85: 2017 | O85: CAGR %
C86: VOLUMES BY INCOME LEVEL OF CUSTOMERS
C88: 5000 SAR or less per month
C89: 5001 to 10000 SAR per month
C90: 10001 to 15000 SAR per month
C91: 15001 to 20000 SAR per month
C92: More than 20000 SAR per month
C93: TOTAL VOLUME
C98: FOR NON RETAIL FINANCIAL LEASE ONLY | D98: Historical | J98: Forecast
C99: SAR | D99: 2008 | E99: 2009 | F99: 2010 | G99: 2011 | H99: 2012 | I99: CAGR % | J99: 2013 | K99: 2014 | L99: 2015 | M99: 2016 | N99: 2017 | O99: CAGR %
C100: VOLUMES BY REVENUE LEVEL OF CUSTOMER COMPANIES
C102: Less than 500000 SAR per annum
C103: 500000 to 1 million SAR per annum
C104: 1 million to 2 million SAR per annum
C105: 2 million to 5 million SAR per annum
C106: More than 5 million SAR per annum
C107: TOTAL VOLUMES

Sheet 3.5 Performance of portfolio
C7: Performance of portfolio
C9: Fill the following table with the historical values for the past 5 years and the Forecast values for the next 5 years for the financing activities applied for.
D10: Historical | J10: Forecast
C11: SAR | D11: 2008 | E11: 2009 | F11: 2010 | G11: 2011 | H11: 2012 | I11: CAGR % | J11: 2013 | K11: 2014 | L11: 2015 | M11: 2016 | N11: 2017 | O11: CAGR %
C13: Overall income from financing activities
C14: By Real estate finance
C15: By Financial lease
C16: NET FINANCING INCOME
C18: Fee and commission income, net
C19: By Real estate finance
C20: By Financial lease
C21: Other Income
C22: Please specify others
C23: GROSS OPERATING INCOME
C25: Less
C26: Financing costs
C27: NET OPERATING INCOME
C28: Allocated Salaries and employees' related expenses
C29: Allocation of Rent and premises related expenses
C30: Allocated other General and Administrative expenses
C31: Charge for Impairment on financing
C32: Depreciation and amortization
C33: Income Tax
C34: Zakat
C35: Other expenses (e.g.. Formation expenses for new company)
C36: Please specify others
C38: NET INCOME
C39: By Real estate finance
C40: By Financial lease

Sheet 3.6 Ratios and assumptions
C8: Ratios
C9: Fill the following table with the historical values for the past 5 years and the Forecast values for the next 5 years for the financing activities applied for.
D10: Historical | J10: Forecast
C11: FOR REAL ESTATE FINANCE ONLY | D11: 2008 | E11: 2009 | F11: 2010 | G11: 2011 | H11: 2012 | I11: CAGR % | J11: 2013 | K11: 2014 | L11: 2015 | M11: 2016 | N11: 2017 | O11: CAGR %
C12: PROFITABILITY RATIOS
C14: Gross Margins
C15: Net Profit margins
C17: COST RATIOS
C19: Non Performing loans as % of gross loans
C21: FINANCIAL RATIOS
C23: Average LTV (only for real estate finance)
C27: Fill the following table with the historical values for the past 5 years and the Forecast values for the next 5 years for the financing activities applied for.
D28: Historical | J28: Forecast
C29: FOR FINANCIAL LEASE ONLY | D29: 2008 | E29: 2009 | F29: 2010 | G29: 2011 | H29: 2012 | I29: CAGR1% | J29: 2013 | K29: 2014 | L29: 2015 | M29: 2016 | N29: 2017 | O29: CAGR %
C30: PROFITABILITY RATIOS
C32: Gross Margins
C33: By motor financial lease
C34: By equipment financial lease
C35: Other financial lease (do not include real estate financial lease; it should be covered in real estate finance)
C36: Net Profit margins
C37: By motor financial lease
C38: By equipment financial lease
C39: Other financial lease (do not include real estate financial lease which should be covered in real estate finance)
C41: COST RATIOS
C43: Non Performing loans as % of gross loans overall
C44: By motor financial lease
C45: By equipment financial lease
C46: Other financial lease (do not include real estate financial lease; it should be covered in real estate finance)
D50: Historical | J50: Forecast | P50: Source of Assumptions
D51: 2008 | E51: 2009 | F51: 2010 | G51: 2011 | H51: 2012 | I51: CAGR % | J51: 2013 | K51: 2014 | L51: 2015 | M51: 2016 | N51: 2017 | O51: CAGR %
C52: CUSTOMERS BY FINANCING ACTIVITY
C54: By Real estate finance
C55: By Financial lease

Sheet Ratio definitions
C8: Ratio definitions
D10: Definition
C11: PROFITABILITY RATIOS
C13: Gross margins | D13: Gross margin = Gross profit / Revenues
C14: Net profit margins | D14: Net profit margin = Net income / Revenues
C17: COST RATIOS
C19: Non Performing loans as % of gross loans | D19: Non performing loans = value of non performing loans / value of total loans
C20: By Real estate finance | D20: Non performing loans in Real estate = Value of non performing loans in Real estate/value of total loans in real estate
C21: By Financial lease | D21: Non performing loans in Financial lease = Value of non performing loans in Financial lease/ Value of total loans in Financial lease
C24: FINANCIAL RATIOS
C26: Average loan-to-value (LTV) | D26: Loan to value ratio = Value of loan underwritten/value of asset

Sheet 3.7 Execution-Operations Plan
C9: Execution-Operations plan
C11: Fill details below about Risk Management with respect to financing activities for which the Bank has applied:
A12: FALSE | C12: Risk Management | Q12: TRUE
C14: What kind of processes and tools are used by the bank for managing each kind of the following risks?
C15: Credit Risk
C17: Market Risk
C19: Term Cost Rate Risk
C21: Risk of non-conformity between assets and liabilities
C23: Exchange Rate Risk
C25: Liquidity Risk
C27: Operational Risk
C29: Country Risk
C31: Legal Risk
C33: Technology Risk
C35: Provide details about insurance to minimize any kind of the risks above or any other risks?
C39: Fill details below about Marketing and sales with respect to the financing activities applied for.
C40: Marketing and Sales
C42: Key sources of customer acquisition
C44: Primary marketing medium
C46: Budget for marketing for 1st year, SAR
C48: Attach a detailed marketing plan with the application form
C53: Fill details below about information security with respect to the financing activities applied for
C54: IT Infrastructure
C55: What are the core systems that are used or to be used?
F56: System
A58: FALSE
A60: FALSE
A62: FALSE
A64: FALSE
A66: FALSE
A68: FALSE
A70: FALSE
C72: Specify any other systems currently used or will be used in the future
C77: Collection Plan
C79: Financial Activity | F79: In House / Outsourced
A81: 2 | C81: Real estate finance
A83: 2 | C83: Financial lease
C86: Collections timeline: Provide different steps taken by the Bank according to the time of default: 1-30 days of non payment, 30-90 days of non payment and more than 90 days of non payment.
C88: Name of the outsourced collection vendor (if any)
C92: Fill details below about back office operations with respect to the financing activities applied for.
C93: Back Office Operations
F95: Credit Operations | H95: Credit Administration | J95: Customer services | L95: Collection | N95: Portfolio management
C97: Which of these operations are currently conducted by the Bank?
C99: Operations that have detailed work policies and procedures
C101: How many people is the Bank planning to appoint within the next five years?
C106: Timeline
C108: Please provide launch dates for the Selected Activities
C110: Real estate finance | I110: Financial Lease
C114: Fill details below about sharia committee with respect to the financing activities applied for.
C115: Sharia Committee
C117: Names of committee members
C119: Chairman
C121: Committee responsibilities and roles
C123: The timeline for reviewing Real Estate Finance and Financial Lease activities in the Bank by the Sharia committee
C125: The timeline for reviewing products of Real Estate Finance and Financial Lease activities in the Bank by the Sharia committee
C129: The license application must be accompanied with the following attachments regarding the financing activities applied for
C130: Other attachments
C132: Attach a sheet with details about all the sale and purchase of financial leases and real estate portfolios with other financial institutions or third parties (including type of finance activity, party involved, date of transaction, size, purchase/sale price, credit rating) over the last 5 years listing.
C134: Attach a sheet with details about all the loans extended to finance or instalment companies in the last 5 years.

Sheet 3.8 Human Resources Plan
C6: Human Resources Plan
C7: Fill details below about human resources plan for the next 5 years only if the bank has applied for real estate finance
C8: Human Resources Plan
C9: Real Estate Finance | D9: 2013 | F9: 2014 | H9: 2015 | J9: 2016 | L9: 2017 | N9: CAGR
D10: No. of Employees | E10: Saudization % | F10: No. of Employees | G10: Saudization % | H10: No. of Employees | I10: Saudization % | J10: No. of Employees | K10: Saudization % | L10: No. of Employees | M10: Saudization % | N10: No. of Employees | O10: Saudization %
C11: Overall
C12: By Function
C13: Sales and Marketing
C14: Risk Management (if any)
C17: Fill details below about human resources plan for the next 5 years only if the bank has applied for financial lease
C18: Human Resources Plan
C19: Financial Lease | D19: 2013 | F19: 2014 | H19: 2015 | J19: 2016 | L19: 2017 | N19: CAGR
D20: No. of Employees | E20: Saudization % | F20: No. of Employees | G20: Saudization % | H20: No. of Employees | I20: Saudization % | J20: No. of Employees | K20: Saudization % | L20: No. of Employees | M20: Saudization % | N20: No. of Employees | O20: Saudization %
C21: Overall
C22: By Function
C23: Sales and Marketing
C24: Risk Management (if any)
C28: Fill details below about training program with respect to the activities for which the bank has applied: Real estate finance or Finance lease
C29: Training Program
C31: Provide average number of training days per employee
C33: Budget for training in first year, SAR
C35: Technical Trainings
C37: Name of courses offered | E37: Mention target employees level and functions
C59: Other Trainings
C61: Name of courses offered | E61: Mention target employees level and functions

Sheet 4. Acknowledgement
C6: Acknowledgement
C7: This acknowledgement should be signed by an official representative of the Bank.
C9: I hereby acknowledge that I have read the Law on the Supervision of Finance Companies, the Financial Lease Law, the Real Estate Finance Law and other related laws and regulations in the Kingdom of Saudi Arabia. I am aware that it is a sanctionable offence under the terms of the Law on the Supervision of Finance Companies and other laws to knowingly or recklessly provide to SAMA or any other natural or juristic person any information which is false or misleading or inaccurate or incomplete in connection with the conduct of business in Saudi Arabia.
C19: I declare that the Bank is aware of the information provided in this application and acknowledge that the documents, information and data provided in this application and provided as a supplement to the application is complete and accurate and that there is no other relevant significant documents and information which is not disclosed in the license application. I declare that the documents and information provided in the softcopy of the application is identical to the documents and information provided in the hardcopy of documents and forms of the application, including the information provided in "Business Plan Details" section, which is identical to the submitted business plan.
C28: I undertake that the Bank will provide SAMA immediately with any information or documents it considers necessary for the purpose of evaluating the licensee application.
C29: I declare that the Bank is aware that SAMA may reject the license application or revoke the License if it is found that the Bank has submitted false information or failed to disclose material information that should have been provided for licensing purposes.
C34: I undertake that the Bank will notify SAMA of any information or material changes affecting the completeness or accuracy of the information, forms and documents within a maximum period of 30 business days from the day of obtaining the information or the occurrence of the change. In case of not complying with this, the Bank shall be subject to any penalties stipulated in relevant laws.
C39: Name:
C40: Signature:
C41: Position:
C42: Date:
E43: Bank stamp

Sheet 5. Attachments
B7: Attachments
B9: The following table must be filled in with all forms and documents submitted with the application. Print as many copies of these pages as required.
B12: Attachment number | C12: Form name | D12: Number of pages in attachment
B13: 1
B14: 2
B15: 3
B16: 4
B17: 5
B18: 6
B19: 7
B20: 8
B21: 9
B22: 10
B23: 11
B24: 12
B25: 13
B26: 14
B27: 15
B28: 16
B29: 17
B30: 18
B31: 19
B32: 20
B33: 21
B34: 22
B35: 23
B36: 24
B37: 25
B38: 26
B39: 27
B40: 28
B41: 29
B42: 30
B43: 31
B44: 32
B45: 33
B46: 34
B47: 35
B48: 36
B49: 37
B50: 38
B51: 39
B52: 40
B53: 41
B54: 42
B55: 43
B56: 44
B57: 45
B58: 46
B59: 47
B60: 48
B61: 49
B62: 50
B63: 51
B64: 52
B65: 53
B66: 54
B67: 55
B68: 56
B69: 57
B70: 58
B71: 59
B72: 60
B73: 61
B74: 62
B75: 63
B76: 64
B77: 65
B78: 66
B79: 67
B80: 68
B81: 69
B82: 70
B83: 71
B84: 72
B85: 73
B86: 74
B87: 75
B88: 76
B89: 77
B90: 78
B91: 79
B92: 80
B93: 81
B94: 82
B95: 83
B96: 84
B97: 85
B98: 86
B99: 87
B100: 88
B101: 89
B102: 90
B103: 91
B104: 92
B105: 93
B106: 94
B107: 95
B108: 96
B109: 97
B110: 98
B111: 99
B112: 100
B114: END OF FORM
